Workbook

Sheet Overview
B2: HR budget | D2: =+Settings!C2 -> 2021 | E2: =D2+1 -> 2022 | F2: =E2+1 -> 2023 | G2: =F2+1 -> 2024 | H2: =G2+1 -> 2025 | I2: =H2+1 -> 2026 | J2: =I2+1 -> 2027 | K2: 2028
B3: in TEUR | D3: PY | E3: FC | F3: B | G3: B | H3: B | I3: B | J3: B | K3: B
B5: Management | D5: =+SUMIF(HR!$B:$B,Overview!$B5,HR!K:K) -> 261.80 | E5: =+SUMIF(HR!$B:$B,Overview!$B5,HR!L:L) -> 261.80 | F5: =+SUMIF(HR!$B:$B,Overview!$B5,HR!M:M) -> 261.80 | G5: =+SUMIF(HR!$B:$B,Overview!$B5,HR!N:N) -> 261.80 | H5: =+SUMIF(HR!$B:$B,Overview!$B5,HR!O:O) -> 261.80 | I5: =+SUMIF(HR!$B:$B,Overview!$B5,HR!P:P) -> 261.80 | J5: =+SUMIF(HR!$B:$B,Overview!$B5,HR!Q:Q) -> 261.80 | K5: =+SUMIF(HR!$B:$B,Overview!$B5,HR!R:R) -> 261.80
B6: FTE | D6: =+SUMIFS(HR!$G:$G,HR!$B:$B,Overview!$B5,HR!T:T,">0") -> 1.00 | E6: =+SUMIFS(HR!$G:$G,HR!$B:$B,Overview!$B5,HR!U:U,">0") -> 1.00 | F6: =+SUMIFS(HR!$G:$G,HR!$B:$B,Overview!$B5,HR!V:V,">0") -> 1.00 | G6: =+SUMIFS(HR!$G:$G,HR!$B:$B,Overview!$B5,HR!W:W,">0") -> 1.00 | H6: =+SUMIFS(HR!$G:$G,HR!$B:$B,Overview!$B5,HR!X:X,">0") -> 1.00 | I6: =+SUMIFS(HR!$G:$G,HR!$B:$B,Overview!$B5,HR!Y:Y,">0") -> 1.00 | J6: =+SUMIFS(HR!$G:$G,HR!$B:$B,Overview!$B5,HR!Z:Z,">0") -> 1.00 | K6: =+SUMIFS(HR!$G:$G,HR!$B:$B,Overview!$B5,HR!AA:AA,">0") -> 1.00
B8: Secretariat | D8: =+SUMIF(HR!$B:$B,Overview!$B8,HR!K:K) -> 59.50 | E8: =+SUMIF(HR!$B:$B,Overview!$B8,HR!L:L) -> 59.50 | F8: =+SUMIF(HR!$B:$B,Overview!$B8,HR!M:M) -> 61.64 | G8: =+SUMIF(HR!$B:$B,Overview!$B8,HR!N:N) -> 63.31 | H8: =+SUMIF(HR!$B:$B,Overview!$B8,HR!O:O) -> 64.46 | I8: =+SUMIF(HR!$B:$B,Overview!$B8,HR!P:P) -> 65.63 | J8: =+SUMIF(HR!$B:$B,Overview!$B8,HR!Q:Q) -> 68.01 | K8: =+SUMIF(HR!$B:$B,Overview!$B8,HR!R:R) -> 70.42
B9: FTE | D9: =+SUMIFS(HR!$G:$G,HR!$B:$B,Overview!$B8,HR!T:T,">0") -> 1.00 | E9: =+SUMIFS(HR!$G:$G,HR!$B:$B,Overview!$B8,HR!U:U,">0") -> 1.00 | F9: =+SUMIFS(HR!$G:$G,HR!$B:$B,Overview!$B8,HR!V:V,">0") -> 1.00 | G9: =+SUMIFS(HR!$G:$G,HR!$B:$B,Overview!$B8,HR!W:W,">0") -> 1.00 | H9: =+SUMIFS(HR!$G:$G,HR!$B:$B,Overview!$B8,HR!X:X,">0") -> 1.00 | I9: =+SUMIFS(HR!$G:$G,HR!$B:$B,Overview!$B8,HR!Y:Y,">0") -> 1.00 | J9: =+SUMIFS(HR!$G:$G,HR!$B:$B,Overview!$B8,HR!Z:Z,">0") -> 1.00 | K9: =+SUMIFS(HR!$G:$G,HR!$B:$B,Overview!$B8,HR!AA:AA,">0") -> 1.00
B11: Sales | D11: =+SUMIF(HR!$B:$B,Overview!$B11,HR!K:K) -> 55.93 | E11: =+SUMIF(HR!$B:$B,Overview!$B11,HR!L:L) -> 54.74 | F11: =+SUMIF(HR!$B:$B,Overview!$B11,HR!M:M) -> 58.07 | G11: =+SUMIF(HR!$B:$B,Overview!$B11,HR!N:N) -> 59.74 | H11: =+SUMIF(HR!$B:$B,Overview!$B11,HR!O:O) -> 60.89 | I11: =+SUMIF(HR!$B:$B,Overview!$B11,HR!P:P) -> 62.06 | J11: =+SUMIF(HR!$B:$B,Overview!$B11,HR!Q:Q) -> 64.44 | K11: =+SUMIF(HR!$B:$B,Overview!$B11,HR!R:R) -> 66.85
B12: FTE | D12: =+SUMIFS(HR!$G:$G,HR!$B:$B,Overview!$B11,HR!T:T,">0") -> 1.00 | E12: =+SUMIFS(HR!$G:$G,HR!$B:$B,Overview!$B11,HR!U:U,">0") -> 1.00 | F12: =+SUMIFS(HR!$G:$G,HR!$B:$B,Overview!$B11,HR!V:V,">0") -> 1.00 | G12: =+SUMIFS(HR!$G:$G,HR!$B:$B,Overview!$B11,HR!W:W,">0") -> 1.00 | H12: =+SUMIFS(HR!$G:$G,HR!$B:$B,Overview!$B11,HR!X:X,">0") -> 1.00 | I12: =+SUMIFS(HR!$G:$G,HR!$B:$B,Overview!$B11,HR!Y:Y,">0") -> 1.00 | J12: =+SUMIFS(HR!$G:$G,HR!$B:$B,Overview!$B11,HR!Z:Z,">0") -> 1.00 | K12: =+SUMIFS(HR!$G:$G,HR!$B:$B,Overview!$B11,HR!AA:AA,">0") -> 1.00
B14: Marketing & Design | D14: =+SUMIF(HR!$B:$B,Overview!$B14,HR!K:K) -> 20.00 | E14: =+SUMIF(HR!$B:$B,Overview!$B14,HR!L:L) -> 45.00 | F14: =+SUMIF(HR!$B:$B,Overview!$B14,HR!M:M) -> 45.00 | G14: =+SUMIF(HR!$B:$B,Overview!$B14,HR!N:N) -> 45.00 | H14: =+SUMIF(HR!$B:$B,Overview!$B14,HR!O:O) -> 45.00 | I14: =+SUMIF(HR!$B:$B,Overview!$B14,HR!P:P) -> 45.00 | J14: =+SUMIF(HR!$B:$B,Overview!$B14,HR!Q:Q) -> 46.00 | K14: =+SUMIF(HR!$B:$B,Overview!$B14,HR!R:R) -> 47.00
B15: FTE | D15: =+SUMIFS(HR!$G:$G,HR!$B:$B,Overview!$B14,HR!T:T,">0") -> 1.00 | E15: =+SUMIFS(HR!$G:$G,HR!$B:$B,Overview!$B14,HR!U:U,">0") -> 1.00 | F15: =+SUMIFS(HR!$G:$G,HR!$B:$B,Overview!$B14,HR!V:V,">0") -> 1.00 | G15: =+SUMIFS(HR!$G:$G,HR!$B:$B,Overview!$B14,HR!W:W,">0") -> 1.00 | H15: =+SUMIFS(HR!$G:$G,HR!$B:$B,Overview!$B14,HR!X:X,">0") -> 1.00 | I15: =+SUMIFS(HR!$G:$G,HR!$B:$B,Overview!$B14,HR!Y:Y,">0") -> 1.00 | J15: =+SUMIFS(HR!$G:$G,HR!$B:$B,Overview!$B14,HR!Z:Z,">0") -> 1.00 | K15: =+SUMIFS(HR!$G:$G,HR!$B:$B,Overview!$B14,HR!AA:AA,">0") -> 1.00
B17: Procurement | D17: =+SUMIF(HR!$B:$B,Overview!$B17,HR!K:K) -> 51.17 | E17: =+SUMIF(HR!$B:$B,Overview!$B17,HR!L:L) -> 51.17 | F17: =+SUMIF(HR!$B:$B,Overview!$B17,HR!M:M) -> 53.17 | G17: =+SUMIF(HR!$B:$B,Overview!$B17,HR!N:N) -> 54.73 | H17: =+SUMIF(HR!$B:$B,Overview!$B17,HR!O:O) -> 55.80 | I17: =+SUMIF(HR!$B:$B,Overview!$B17,HR!P:P) -> 56.89 | J17: =+SUMIF(HR!$B:$B,Overview!$B17,HR!Q:Q) -> 59.20 | K17: =+SUMIF(HR!$B:$B,Overview!$B17,HR!R:R) -> 61.52
B18: FTE | D18: =+SUMIFS(HR!$G:$G,HR!$B:$B,Overview!$B17,HR!T:T,">0") -> 1.00 | E18: =+SUMIFS(HR!$G:$G,HR!$B:$B,Overview!$B17,HR!U:U,">0") -> 1.00 | F18: =+SUMIFS(HR!$G:$G,HR!$B:$B,Overview!$B17,HR!V:V,">0") -> 1.00 | G18: =+SUMIFS(HR!$G:$G,HR!$B:$B,Overview!$B17,HR!W:W,">0") -> 1.00 | H18: =+SUMIFS(HR!$G:$G,HR!$B:$B,Overview!$B17,HR!X:X,">0") -> 1.00 | I18: =+SUMIFS(HR!$G:$G,HR!$B:$B,Overview!$B17,HR!Y:Y,">0") -> 1.00 | J18: =+SUMIFS(HR!$G:$G,HR!$B:$B,Overview!$B17,HR!Z:Z,">0") -> 1.00 | K18: =+SUMIFS(HR!$G:$G,HR!$B:$B,Overview!$B17,HR!AA:AA,">0") -> 1.00
B20: IT & DevOps | D20: =+SUMIF(HR!$B:$B,Overview!$B20,HR!K:K) -> 73.78 | E20: =+SUMIF(HR!$B:$B,Overview!$B20,HR!L:L) -> 73.78 | F20: =+SUMIF(HR!$B:$B,Overview!$B20,HR!M:M) -> 76.06 | G20: =+SUMIF(HR!$B:$B,Overview!$B20,HR!N:N) -> 77.84 | H20: =+SUMIF(HR!$B:$B,Overview!$B20,HR!O:O) -> 79.06 | I20: =+SUMIF(HR!$B:$B,Overview!$B20,HR!P:P) -> 80.31 | J20: =+SUMIF(HR!$B:$B,Overview!$B20,HR!Q:Q) -> 81.58 | K20: =+SUMIF(HR!$B:$B,Overview!$B20,HR!R:R) -> 82.87
B21: FTE | D21: =+SUMIFS(HR!$G:$G,HR!$B:$B,Overview!$B20,HR!T:T,">0") -> 1.00 | E21: =+SUMIFS(HR!$G:$G,HR!$B:$B,Overview!$B20,HR!U:U,">0") -> 1.00 | F21: =+SUMIFS(HR!$G:$G,HR!$B:$B,Overview!$B20,HR!V:V,">0") -> 1.00 | G21: =+SUMIFS(HR!$G:$G,HR!$B:$B,Overview!$B20,HR!W:W,">0") -> 1.00 | H21: =+SUMIFS(HR!$G:$G,HR!$B:$B,Overview!$B20,HR!X:X,">0") -> 1.00 | I21: =+SUMIFS(HR!$G:$G,HR!$B:$B,Overview!$B20,HR!Y:Y,">0") -> 1.00 | J21: =+SUMIFS(HR!$G:$G,HR!$B:$B,Overview!$B20,HR!Z:Z,">0") -> 1.00 | K21: =+SUMIFS(HR!$G:$G,HR!$B:$B,Overview!$B20,HR!AA:AA,">0") -> 1.00
B23: Finance | D23: =+SUMIF(HR!$B:$B,Overview!$B23,HR!K:K) -> 54.74 | E23: =+SUMIF(HR!$B:$B,Overview!$B23,HR!L:L) -> 54.74 | F23: =+SUMIF(HR!$B:$B,Overview!$B23,HR!M:M) -> 56.88 | G23: =+SUMIF(HR!$B:$B,Overview!$B23,HR!N:N) -> 58.55 | H23: =+SUMIF(HR!$B:$B,Overview!$B23,HR!O:O) -> 59.70 | I23: =+SUMIF(HR!$B:$B,Overview!$B23,HR!P:P) -> 60.87 | J23: =+SUMIF(HR!$B:$B,Overview!$B23,HR!Q:Q) -> 63.25 | K23: =+SUMIF(HR!$B:$B,Overview!$B23,HR!R:R) -> 65.66
B24: FTE | D24: =+SUMIFS(HR!$G:$G,HR!$B:$B,Overview!$B23,HR!T:T,">0") -> 1.00 | E24: =+SUMIFS(HR!$G:$G,HR!$B:$B,Overview!$B23,HR!U:U,">0") -> 1.00 | F24: =+SUMIFS(HR!$G:$G,HR!$B:$B,Overview!$B23,HR!V:V,">0") -> 1.00 | G24: =+SUMIFS(HR!$G:$G,HR!$B:$B,Overview!$B23,HR!W:W,">0") -> 1.00 | H24: =+SUMIFS(HR!$G:$G,HR!$B:$B,Overview!$B23,HR!X:X,">0") -> 1.00 | I24: =+SUMIFS(HR!$G:$G,HR!$B:$B,Overview!$B23,HR!Y:Y,">0") -> 1.00 | J24: =+SUMIFS(HR!$G:$G,HR!$B:$B,Overview!$B23,HR!Z:Z,">0") -> 1.00 | K24: =+SUMIFS(HR!$G:$G,HR!$B:$B,Overview!$B23,HR!AA:AA,">0") -> 1.00
B26: QM | D26: =+SUMIF(HR!$B:$B,Overview!$B26,HR!K:K) -> 73.78 | E26: =+SUMIF(HR!$B:$B,Overview!$B26,HR!L:L) -> 73.78 | F26: =+SUMIF(HR!$B:$B,Overview!$B26,HR!M:M) -> 76.49 | G26: =+SUMIF(HR!$B:$B,Overview!$B26,HR!N:N) -> 78.61 | H26: =+SUMIF(HR!$B:$B,Overview!$B26,HR!O:O) -> 80.06 | I26: =+SUMIF(HR!$B:$B,Overview!$B26,HR!P:P) -> 81.54 | J26: =+SUMIF(HR!$B:$B,Overview!$B26,HR!Q:Q) -> 84.25 | K26: =+SUMIF(HR!$B:$B,Overview!$B26,HR!R:R) -> 86.98
B27: FTE | D27: =+SUMIFS(HR!$G:$G,HR!$B:$B,Overview!$B26,HR!T:T,">0") -> 1.00 | E27: =+SUMIFS(HR!$G:$G,HR!$B:$B,Overview!$B26,HR!U:U,">0") -> 1.00 | F27: =+SUMIFS(HR!$G:$G,HR!$B:$B,Overview!$B26,HR!V:V,">0") -> 1.00 | G27: =+SUMIFS(HR!$G:$G,HR!$B:$B,Overview!$B26,HR!W:W,">0") -> 1.00 | H27: =+SUMIFS(HR!$G:$G,HR!$B:$B,Overview!$B26,HR!X:X,">0") -> 1.00 | I27: =+SUMIFS(HR!$G:$G,HR!$B:$B,Overview!$B26,HR!Y:Y,">0") -> 1.00 | J27: =+SUMIFS(HR!$G:$G,HR!$B:$B,Overview!$B26,HR!Z:Z,">0") -> 1.00 | K27: =+SUMIFS(HR!$G:$G,HR!$B:$B,Overview!$B26,HR!AA:AA,">0") -> 1.00
B29: HR | D29: =+SUMIF(HR!$B:$B,Overview!$B29,HR!K:K) -> 65.45 | E29: =+SUMIF(HR!$B:$B,Overview!$B29,HR!L:L) -> 65.45 | F29: =+SUMIF(HR!$B:$B,Overview!$B29,HR!M:M) -> 68.07 | G29: =+SUMIF(HR!$B:$B,Overview!$B29,HR!N:N) -> 70.11 | H29: =+SUMIF(HR!$B:$B,Overview!$B29,HR!O:O) -> 71.51 | I29: =+SUMIF(HR!$B:$B,Overview!$B29,HR!P:P) -> 72.94 | J29: =+SUMIF(HR!$B:$B,Overview!$B29,HR!Q:Q) -> 74.40 | K29: =+SUMIF(HR!$B:$B,Overview!$B29,HR!R:R) -> 75.89
B30: FTE | D30: =+SUMIFS(HR!$G:$G,HR!$B:$B,Overview!$B29,HR!T:T,">0") -> 1.00 | E30: =+SUMIFS(HR!$G:$G,HR!$B:$B,Overview!$B29,HR!U:U,">0") -> 1.00 | F30: =+SUMIFS(HR!$G:$G,HR!$B:$B,Overview!$B29,HR!V:V,">0") -> 1.00 | G30: =+SUMIFS(HR!$G:$G,HR!$B:$B,Overview!$B29,HR!W:W,">0") -> 1.00 | H30: =+SUMIFS(HR!$G:$G,HR!$B:$B,Overview!$B29,HR!X:X,">0") -> 1.00 | I30: =+SUMIFS(HR!$G:$G,HR!$B:$B,Overview!$B29,HR!Y:Y,">0") -> 1.00 | J30: =+SUMIFS(HR!$G:$G,HR!$B:$B,Overview!$B29,HR!Z:Z,">0") -> 1.00 | K30: =+SUMIFS(HR!$G:$G,HR!$B:$B,Overview!$B29,HR!AA:AA,">0") -> 1.00
B32: Development | D32: =+SUMIF(HR!$B:$B,Overview!$B32,HR!K:K) -> 73.78 | E32: =+SUMIF(HR!$B:$B,Overview!$B32,HR!L:L) -> 73.78 | F32: =+SUMIF(HR!$B:$B,Overview!$B32,HR!M:M) -> 76.49 | G32: =+SUMIF(HR!$B:$B,Overview!$B32,HR!N:N) -> 78.61 | H32: =+SUMIF(HR!$B:$B,Overview!$B32,HR!O:O) -> 80.06 | I32: =+SUMIF(HR!$B:$B,Overview!$B32,HR!P:P) -> 81.54 | J32: =+SUMIF(HR!$B:$B,Overview!$B32,HR!Q:Q) -> 84.25 | K32: =+SUMIF(HR!$B:$B,Overview!$B32,HR!R:R) -> 86.98
B33: FTE | D33: =+SUMIFS(HR!$G:$G,HR!$B:$B,Overview!$B32,HR!T:T,">0") -> 1.00 | E33: =+SUMIFS(HR!$G:$G,HR!$B:$B,Overview!$B32,HR!U:U,">0") -> 1.00 | F33: =+SUMIFS(HR!$G:$G,HR!$B:$B,Overview!$B32,HR!V:V,">0") -> 1.00 | G33: =+SUMIFS(HR!$G:$G,HR!$B:$B,Overview!$B32,HR!W:W,">0") -> 1.00 | H33: =+SUMIFS(HR!$G:$G,HR!$B:$B,Overview!$B32,HR!X:X,">0") -> 1.00 | I33: =+SUMIFS(HR!$G:$G,HR!$B:$B,Overview!$B32,HR!Y:Y,">0") -> 1.00 | J33: =+SUMIFS(HR!$G:$G,HR!$B:$B,Overview!$B32,HR!Z:Z,">0") -> 1.00 | K33: =+SUMIFS(HR!$G:$G,HR!$B:$B,Overview!$B32,HR!AA:AA,">0") -> 1.00
B35: Support | D35: =+SUMIF(HR!$B:$B,Overview!$B35,HR!K:K) -> 73.78 | E35: =+SUMIF(HR!$B:$B,Overview!$B35,HR!L:L) -> 73.78 | F35: =+SUMIF(HR!$B:$B,Overview!$B35,HR!M:M) -> 76.49 | G35: =+SUMIF(HR!$B:$B,Overview!$B35,HR!N:N) -> 78.61 | H35: =+SUMIF(HR!$B:$B,Overview!$B35,HR!O:O) -> 80.06 | I35: =+SUMIF(HR!$B:$B,Overview!$B35,HR!P:P) -> 81.54 | J35: =+SUMIF(HR!$B:$B,Overview!$B35,HR!Q:Q) -> 84.25 | K35: =+SUMIF(HR!$B:$B,Overview!$B35,HR!R:R) -> 86.98
B36: FTE | D36: =+SUMIFS(HR!$G:$G,HR!$B:$B,Overview!$B35,HR!T:T,">0") -> 1.00 | E36: =+SUMIFS(HR!$G:$G,HR!$B:$B,Overview!$B35,HR!U:U,">0") -> 1.00 | F36: =+SUMIFS(HR!$G:$G,HR!$B:$B,Overview!$B35,HR!V:V,">0") -> 1.00 | G36: =+SUMIFS(HR!$G:$G,HR!$B:$B,Overview!$B35,HR!W:W,">0") -> 1.00 | H36: =+SUMIFS(HR!$G:$G,HR!$B:$B,Overview!$B35,HR!X:X,">0") -> 1.00 | I36: =+SUMIFS(HR!$G:$G,HR!$B:$B,Overview!$B35,HR!Y:Y,">0") -> 1.00 | J36: =+SUMIFS(HR!$G:$G,HR!$B:$B,Overview!$B35,HR!Z:Z,">0") -> 1.00 | K36: =+SUMIFS(HR!$G:$G,HR!$B:$B,Overview!$B35,HR!AA:AA,">0") -> 1.00
B38: Other | D38: =+Settings!C9 -> 0 | E38: =+Settings!D9 -> 0 | F38: =+Settings!E9 -> 10.00 | G38: =+Settings!F9 -> 10.00 | H38: =+Settings!G9 -> 10.00 | I38: =+Settings!H9 -> 10.00 | J38: =+Settings!I9 -> 10.00 | K38: =+Settings!J9 -> 10.00
B40: Total | D40: =+D35+D32+D29+D26+D23+D20+D17+D14+D11+D8+D5+D38 -> 863.71 | E40: =+E35+E32+E29+E26+E23+E20+E17+E14+E11+E8+E5+E38 -> 887.52 | F40: 920.17 | G40: 936.91 | H40: 948.41 | I40: 960.13 | J40: =+J35+J32+J29+J26+J23+J20+J17+J14+J11+J8+J5+J38 -> 981.42 | K40: 1,002.95
B41: FTE | D41: =+D36+D33+D30+D27+D24+D21+D18+D15+D12+D9+D6 -> 11.00 | E41: =+E36+E33+E30+E27+E24+E21+E18+E15+E12+E9+E6 -> 11.00 | F41: 11.00 | G41: 11.00 | H41: 11.00 | I41: =+I36+I33+I30+I27+I24+I21+I18+I15+I12+I9+I6 -> 11.00 | J41: =+J36+J33+J30+J27+J24+J21+J18+J15+J12+J9+J6 -> 11.00 | K41: 11.00

Sheet Settings
B2: Basis year | C2: 2021
C4: =+Settings!C2 -> 2021 | D4: =C4+1 -> 2022 | E4: =D4+1 -> 2023 | F4: =E4+1 -> 2024 | G4: =F4+1 -> 2025 | H4: =G4+1 -> 2026 | I4: =H4+1 -> 2027 | J4: 2028
B5: in TEUR | C5: PY | D5: FC | E5: B | F5: B | G5: B | H5: B | I5: B | J5: B
B7: Inflation | E7: 4.0% | F7: 3.0% | G7: 2.0% | H7: 2.0% | I7: 2.0% | J7: 2.0%
B9: Buffer | E9: 10 | F9: 10 | G9: 10 | H9: 10 | I9: 10 | J9: 10

Sheet HR
B2: HR Costs
B3: in TEUR | K3: =+Overview!D2 -> 2021 | L3: =K3+1 -> 2022 | M3: =L3+1 -> 2023 | N3: =M3+1 -> 2024 | O3: =N3+1 -> 2025 | P3: =O3+1 -> 2026 | Q3: =P3+1 -> 2027 | R3: 2028 | T3: 2021 | U3: =T3+1 -> 2022 | V3: =U3+1 -> 2023 | W3: =V3+1 -> 2024 | X3: =W3+1 -> 2025 | Y3: =X3+1 -> 2026 | Z3: =Y3+1 -> 2027 | AA3: 2028
B4: Department | C4: Position | D4: ID | E4: Name | F4: Type | G4: FTE | H4: Start | I4: End | K4: PY | L4: FC | M4: B | N4: B | O4: B | P4: B | Q4: B | R4: B | T4: PY | U4: FC | V4: B | W4: B | X4: B | Y4: B | Z4: B | AA4: B | AC4: is last
B5: Sales | C5: Clerk | D5: 1 | E5: Name of Worker | F5: Salary | G5: 1 | H5: 2022-01-01 | I5: 2199-12-31 | K5: 45.0 | L5: 45.0 | M5: =+L5*(1+Settings!E$7) -> 46.8 | N5: =+M5*(1+Settings!F$7) -> 48.2 | O5: =+N5*(1+Settings!G$7) -> 49.2 | P5: =+O5*(1+Settings!H$7) -> 50.2 | Q5: =+P5*(1+Settings!I$7) -> 51.2 | R5: =+Q5*(1+Settings!J$7) -> 52.2 | T5: =+IF($AC5=1,SUMIF($D:$D,$D5,K:K),"") ->  | U5: =+IF($AC5=1,SUMIF($D:$D,$D5,L:L),"") ->  | V5: =+IF($AC5=1,SUMIF($D:$D,$D5,M:M),"") ->  | W5: =+IF($AC5=1,SUMIF($D:$D,$D5,N:N),"") ->  | X5: =+IF($AC5=1,SUMIF($D:$D,$D5,O:O),"") ->  | Y5: =+IF($AC5=1,SUMIF($D:$D,$D5,P:P),"") ->  | Z5: =+IF($AC5=1,SUMIF($D:$D,$D5,Q:Q),"") ->  | AA5: =+IF($AC5=1,SUMIF($D:$D,$D5,R:R),"") ->  | AC5: =+IF(AND(D5<>"",ISERROR(VLOOKUP(D5,D6:$E$1000,1,FALSE))),1,0) -> 0
B6: Sales | C6: Clerk | D6: 1 | E6: Name of Worker | F6: Bonus | G6: 1 | H6: 2022-01-01 | I6: 2199-12-31 | AC6: =+IF(AND(D6<>"",ISERROR(VLOOKUP(D6,D7:$E$1000,1,FALSE))),1,0) -> 0
B7: Sales | C7: Clerk | D7: 1 | E7: Name of Worker | F7: Bonus accrual | G7: 1 | H7: 2022-01-01 | I7: 2199-12-31 | K7: 2.0 | L7: 1.0 | M7: 2.0 | N7: 2.0 | O7: 2.0 | P7: 2.0 | Q7: 3.0 | R7: 4.0 | AC7: =+IF(AND(D7<>"",ISERROR(VLOOKUP(D7,D8:$E$1000,1,FALSE))),1,0) -> 0
B8: Sales | C8: Clerk | D8: 1 | E8: Name of Worker | F8: Other | G8: 1 | H8: 2022-01-01 | I8: 2199-12-31 | AC8: =+IF(AND(D8<>"",ISERROR(VLOOKUP(D8,D9:$E$1000,1,FALSE))),1,0) -> 0
B9: Sales | C9: Clerk | D9: 1 | E9: Name of Worker | F9: Social expenditure | G9: 1 | H9: 2022-01-01 | I9: 2199-12-31 | K9: =+SUM(K5:K8)*0.19 -> 8.9 | L9: =+SUM(L5:L8)*0.19 -> 8.7 | M9: 9.3 | N9: 9.5 | O9: 9.7 | P9: 9.9 | Q9: =+SUM(Q5:Q8)*0.19 -> 10.3 | R9: 10.7 | T9: =+IF($AC9=1,SUMIF($D:$D,$D9,K:K),"") -> 55.9 | U9: =+IF($AC9=1,SUMIF($D:$D,$D9,L:L),"") -> 54.7 | V9: =+IF($AC9=1,SUMIF($D:$D,$D9,M:M),"") -> 58.1 | W9: =+IF($AC9=1,SUMIF($D:$D,$D9,N:N),"") -> 59.7 | X9: =+IF($AC9=1,SUMIF($D:$D,$D9,O:O),"") -> 60.9 | Y9: =+IF($AC9=1,SUMIF($D:$D,$D9,P:P),"") -> 62.1 | Z9: 64.4 | AA9: 66.9 | AC9: =+IF(AND(D9<>"",ISERROR(VLOOKUP(D9,D10:$E$1000,1,FALSE))),1,0) -> 1
B10: Marketing & Design | C10: Clerk | D10: 2 | E10: Name of Worker | F10: Salary | G10: 1 | H10: 2022-01-01 | I10: 2199-12-31 | K10: 20.0 | L10: 45.0 | M10: 45.0 | N10: 45.0 | O10: 45.0 | P10: 45.0 | Q10: 46.0 | R10: 47.0 | T10: =+IF($AC10=1,SUMIF($D:$D,$D10,K:K),"") -> 20.0 | U10: =+IF($AC10=1,SUMIF($D:$D,$D10,L:L),"") -> 45.0 | V10: =+IF($AC10=1,SUMIF($D:$D,$D10,M:M),"") -> 45.0 | W10: =+IF($AC10=1,SUMIF($D:$D,$D10,N:N),"") -> 45.0 | X10: =+IF($AC10=1,SUMIF($D:$D,$D10,O:O),"") -> 45.0 | Y10: =+IF($AC10=1,SUMIF($D:$D,$D10,P:P),"") -> 45.0 | Z10: 46.0 | AA10: 47.0 | AC10: =+IF(AND(D10<>"",ISERROR(VLOOKUP(D10,D11:$E$1000,1,FALSE))),1,0) -> 1
B11: Development | C11: Clerk | D11: 3 | E11: Name of Worker | F11: Salary | G11: 1 | H11: 2022-01-01 | I11: 2199-12-31 | K11: 57.0 | L11: 57.0 | M11: =+L11*(1+Settings!E$7) -> 59.3 | N11: =+M11*(1+Settings!F$7) -> 61.1 | O11: =+N11*(1+Settings!G$7) -> 62.3 | P11: =+O11*(1+Settings!H$7) -> 63.5 | Q11: =+P11*(1+Settings!I$7) -> 64.8 | R11: =+Q11*(1+Settings!J$7) -> 66.1 | AC11: =+IF(AND(D11<>"",ISERROR(VLOOKUP(D11,D12:$E$1000,1,FALSE))),1,0) -> 0
B12: Development | C12: Clerk | D12: 3 | E12: Name of Worker | F12: Bonus | G12: 1 | H12: 2022-01-01 | I12: 2199-12-31 | AC12: =+IF(AND(D12<>"",ISERROR(VLOOKUP(D12,D13:$E$1000,1,FALSE))),1,0) -> 0
B13: Development | C13: Clerk | D13: 3 | E13: Name of Worker | F13: Bonus accrual | G13: 1 | H13: 2022-01-01 | I13: 2199-12-31 | K13: 5.0 | L13: 5.0 | M13: 5.0 | N13: 5.0 | O13: 5.0 | P13: 5.0 | Q13: 6.0 | R13: 7.0 | AC13: =+IF(AND(D13<>"",ISERROR(VLOOKUP(D13,D14:$E$1000,1,FALSE))),1,0) -> 0
B14: Development | C14: Clerk | D14: 3 | E14: Name of Worker | F14: Other | G14: 1 | H14: 2022-01-01 | I14: 2199-12-31 | AC14: =+IF(AND(D14<>"",ISERROR(VLOOKUP(D14,D15:$E$1000,1,FALSE))),1,0) -> 0
B15: Development | C15: Clerk | D15: 3 | E15: Name of Worker | F15: Social expenditure | G15: 1 | H15: 2022-01-01 | I15: 2199-12-31 | K15: =+SUM(K11:K14)*0.19 -> 11.8 | L15: =+SUM(L11:L14)*0.19 -> 11.8 | M15: =+SUM(M11:M14)*0.19 -> 12.2 | N15: =+SUM(N11:N14)*0.19 -> 12.6 | O15: =+SUM(O11:O14)*0.19 -> 12.8 | P15: =+SUM(P11:P14)*0.19 -> 13.0 | Q15: 13.5 | R15: 13.9 | T15: 73.8 | U15: 73.8 | V15: 76.5 | W15: 78.6 | X15: 80.1 | Y15: 81.5 | Z15: 84.2 | AA15: 87.0 | AC15: =+IF(AND(D15<>"",ISERROR(VLOOKUP(D15,D16:$E$1000,1,FALSE))),1,0) -> 1
B16: HR | C16: Clerk | D16: 4 | E16: Name of Worker | F16: Salary | G16: 1 | H16: 2022-01-01 | I16: 2199-12-31 | K16: 55.0 | L16: 55.0 | M16: =+L16*(1+Settings!E$7) -> 57.2 | N16: =+M16*(1+Settings!F$7) -> 58.9 | O16: =+N16*(1+Settings!G$7) -> 60.1 | P16: =+O16*(1+Settings!H$7) -> 61.3 | Q16: =+P16*(1+Settings!I$7) -> 62.5 | R16: =+Q16*(1+Settings!J$7) -> 63.8 | AC16: =+IF(AND(D16<>"",ISERROR(VLOOKUP(D16,D17:$E$1000,1,FALSE))),1,0) -> 0
B17: HR | C17: Clerk | D17: 4 | E17: Name of Worker | F17: Bonus | G17: 1 | H17: 2022-01-01 | I17: 2199-12-31 | AC17: =+IF(AND(D17<>"",ISERROR(VLOOKUP(D17,D18:$E$1000,1,FALSE))),1,0) -> 0
B18: HR | C18: Clerk | D18: 4 | E18: Name of Worker | F18: Bonus accrual | G18: 1 | H18: 2022-01-01 | I18: 2199-12-31 | AC18: =+IF(AND(D18<>"",ISERROR(VLOOKUP(D18,D19:$E$1000,1,FALSE))),1,0) -> 0
B19: HR | C19: Clerk | D19: 4 | E19: Name of Worker | F19: Other | G19: 1 | H19: 2022-01-01 | I19: 2199-12-31 | AC19: =+IF(AND(D19<>"",ISERROR(VLOOKUP(D19,D20:$E$1000,1,FALSE))),1,0) -> 0
B20: HR | C20: Clerk | D20: 4 | E20: Name of Worker | F20: Social expenditure | G20: 1 | H20: 2022-01-01 | I20: 2199-12-31 | K20: =+SUM(K16:K19)*0.19 -> 10.5 | L20: =+SUM(L16:L19)*0.19 -> 10.5 | M20: =+SUM(M16:M19)*0.19 -> 10.9 | N20: =+SUM(N16:N19)*0.19 -> 11.2 | O20: =+SUM(O16:O19)*0.19 -> 11.4 | P20: =+SUM(P16:P19)*0.19 -> 11.6 | Q20: 11.9 | R20: 12.1 | T20: 65.5 | U20: 65.5 | V20: 68.1 | W20: 70.1 | X20: 71.5 | Y20: 72.9 | Z20: 74.4 | AA20: 75.9 | AC20: =+IF(AND(D20<>"",ISERROR(VLOOKUP(D20,D21:$E$1000,1,FALSE))),1,0) -> 1
B21: QM | C21: Clerk | D21: 5 | E21: Name of Worker | F21: Salary | G21: 1 | H21: 2022-01-01 | I21: 2199-12-31 | K21: 57.0 | L21: 57.0 | M21: =+L21*(1+Settings!E$7) -> 59.3 | N21: =+M21*(1+Settings!F$7) -> 61.1 | O21: =+N21*(1+Settings!G$7) -> 62.3 | P21: =+O21*(1+Settings!H$7) -> 63.5 | Q21: =+P21*(1+Settings!I$7) -> 64.8 | R21: =+Q21*(1+Settings!J$7) -> 66.1 | AC21: =+IF(AND(D21<>"",ISERROR(VLOOKUP(D21,D22:$E$1000,1,FALSE))),1,0) -> 0
B22: QM | C22: Clerk | D22: 5 | E22: Name of Worker | F22: Bonus | G22: 1 | H22: 2022-01-01 | I22: 2199-12-31 | AC22: =+IF(AND(D22<>"",ISERROR(VLOOKUP(D22,D23:$E$1000,1,FALSE))),1,0) -> 0
B23: QM | C23: Clerk | D23: 5 | E23: Name of Worker | F23: Bonus accrual | G23: 1 | H23: 2022-01-01 | I23: 2199-12-31 | K23: 5.0 | L23: 5.0 | M23: 5.0 | N23: 5.0 | O23: 5.0 | P23: 5.0 | Q23: 6.0 | R23: 7.0 | AC23: =+IF(AND(D23<>"",ISERROR(VLOOKUP(D23,D24:$E$1000,1,FALSE))),1,0) -> 0
B24: QM | C24: Clerk | D24: 5 | E24: Name of Worker | F24: Other | G24: 1 | H24: 2022-01-01 | I24: 2199-12-31 | AC24: =+IF(AND(D24<>"",ISERROR(VLOOKUP(D24,D25:$E$1000,1,FALSE))),1,0) -> 0
B25: QM | C25: Clerk | D25: 5 | E25: Name of Worker | F25: Social expenditure | G25: 1 | H25: 2022-01-01 | I25: 2199-12-31 | K25: =+SUM(K21:K24)*0.19 -> 11.8 | L25: =+SUM(L21:L24)*0.19 -> 11.8 | M25: =+SUM(M21:M24)*0.19 -> 12.2 | N25: =+SUM(N21:N24)*0.19 -> 12.6 | O25: =+SUM(O21:O24)*0.19 -> 12.8 | P25: =+SUM(P21:P24)*0.19 -> 13.0 | Q25: 13.5 | R25: 13.9 | T25: 73.8 | U25: 73.8 | V25: 76.5 | W25: 78.6 | X25: 80.1 | Y25: 81.5 | Z25: 84.2 | AA25: 87.0 | AC25: =+IF(AND(D25<>"",ISERROR(VLOOKUP(D25,D26:$E$1000,1,FALSE))),1,0) -> 1
B26: Support | C26: Clerk | D26: 6 | E26: Name of Worker | F26: Salary | G26: 1 | H26: 2022-01-01 | I26: 2199-12-31 | K26: 57.0 | L26: 57.0 | M26: =+L26*(1+Settings!E$7) -> 59.3 | N26: =+M26*(1+Settings!F$7) -> 61.1 | O26: =+N26*(1+Settings!G$7) -> 62.3 | P26: =+O26*(1+Settings!H$7) -> 63.5 | Q26: =+P26*(1+Settings!I$7) -> 64.8 | R26: =+Q26*(1+Settings!J$7) -> 66.1 | AC26: =+IF(AND(D26<>"",ISERROR(VLOOKUP(D26,D27:$E$1000,1,FALSE))),1,0) -> 0
B27: Support | C27: Clerk | D27: 6 | E27: Name of Worker | F27: Bonus | G27: 1 | H27: 2022-01-01 | I27: 2199-12-31 | AC27: =+IF(AND(D27<>"",ISERROR(VLOOKUP(D27,D28:$E$1000,1,FALSE))),1,0) -> 0
B28: Support | C28: Clerk | D28: 6 | E28: Name of Worker | F28: Bonus accrual | G28: 1 | H28: 2022-01-01 | I28: 2199-12-31 | K28: 5.0 | L28: 5.0 | M28: 5.0 | N28: 5.0 | O28: 5.0 | P28: 5.0 | Q28: 6.0 | R28: 7.0 | AC28: =+IF(AND(D28<>"",ISERROR(VLOOKUP(D28,D29:$E$1000,1,FALSE))),1,0) -> 0
B29: Support | C29: Clerk | D29: 6 | E29: Name of Worker | F29: Other | G29: 1 | H29: 2022-01-01 | I29: 2199-12-31 | AC29: =+IF(AND(D29<>"",ISERROR(VLOOKUP(D29,D30:$E$1000,1,FALSE))),1,0) -> 0
B30: Support | C30: Clerk | D30: 6 | E30: Name of Worker | F30: Social expenditure | G30: 1 | H30: 2022-01-01 | I30: 2199-12-31 | K30: =+SUM(K26:K29)*0.19 -> 11.8 | L30: =+SUM(L26:L29)*0.19 -> 11.8 | M30: =+SUM(M26:M29)*0.19 -> 12.2 | N30: =+SUM(N26:N29)*0.19 -> 12.6 | O30: =+SUM(O26:O29)*0.19 -> 12.8 | P30: =+SUM(P26:P29)*0.19 -> 13.0 | Q30: 13.5 | R30: 13.9 | T30: 73.8 | U30: 73.8 | V30: 76.5 | W30: 78.6 | X30: 80.1 | Y30: 81.5 | Z30: 84.2 | AA30: 87.0 | AC30: =+IF(AND(D30<>"",ISERROR(VLOOKUP(D30,D31:$E$1000,1,FALSE))),1,0) -> 1
B31: Procurement | C31: Clerk | D31: 7 | E31: Name of Worker | F31: Salary | G31: 1 | H31: 2022-01-01 | I31: 2199-12-31 | K31: 42.0 | L31: 42.0 | M31: =+L31*(1+Settings!E$7) -> 43.7 | N31: =+M31*(1+Settings!F$7) -> 45.0 | O31: =+N31*(1+Settings!G$7) -> 45.9 | P31: =+O31*(1+Settings!H$7) -> 46.8 | Q31: =+P31*(1+Settings!I$7) -> 47.7 | R31: =+Q31*(1+Settings!J$7) -> 48.7 | AC31: =+IF(AND(D31<>"",ISERROR(VLOOKUP(D31,D32:$E$1000,1,FALSE))),1,0) -> 0
B32: Procurement | C32: Clerk | D32: 7 | E32: Name of Worker | F32: Bonus | G32: 1 | H32: 2022-01-01 | I32: 2199-12-31 | AC32: =+IF(AND(D32<>"",ISERROR(VLOOKUP(D32,D33:$E$1000,1,FALSE))),1,0) -> 0
B33: Procurement | C33: Clerk | D33: 7 | E33: Name of Worker | F33: Bonus accrual | G33: 1 | H33: 2022-01-01 | I33: 2199-12-31 | K33: 1.0 | L33: 1.0 | M33: 1.0 | N33: 1.0 | O33: 1.0 | P33: 1.0 | Q33: 2.0 | R33: 3.0 | AC33: =+IF(AND(D33<>"",ISERROR(VLOOKUP(D33,D34:$E$1000,1,FALSE))),1,0) -> 0
B34: Procurement | C34: Clerk | D34: 7 | E34: Name of Worker | F34: Other | G34: 1 | H34: 2022-01-01 | I34: 2199-12-31 | AC34: =+IF(AND(D34<>"",ISERROR(VLOOKUP(D34,D35:$E$1000,1,FALSE))),1,0) -> 0
B35: Procurement | C35: Clerk | D35: 7 | E35: Name of Worker | F35: Social expenditure | G35: 1 | H35: 2022-01-01 | I35: 2199-12-31 | K35: =+SUM(K31:K34)*0.19 -> 8.2 | L35: =+SUM(L31:L34)*0.19 -> 8.2 | M35: =+SUM(M31:M34)*0.19 -> 8.5 | N35: =+SUM(N31:N34)*0.19 -> 8.7 | O35: =+SUM(O31:O34)*0.19 -> 8.9 | P35: =+SUM(P31:P34)*0.19 -> 9.1 | Q35: 9.5 | R35: 9.8 | T35: 51.2 | U35: 51.2 | V35: 53.2 | W35: 54.7 | X35: 55.8 | Y35: 56.9 | Z35: 59.2 | AA35: 61.5 | AC35: =+IF(AND(D35<>"",ISERROR(VLOOKUP(D35,D36:$E$1000,1,FALSE))),1,0) -> 1
B36: Finance | C36: Clerk | D36: 8 | E36: Name of Worker | F36: Salary | G36: 1 | H36: 2022-01-01 | I36: 2199-12-31 | K36: 45.0 | L36: 45.0 | M36: =+L36*(1+Settings!E$7) -> 46.8 | N36: =+M36*(1+Settings!F$7) -> 48.2 | O36: =+N36*(1+Settings!G$7) -> 49.2 | P36: =+O36*(1+Settings!H$7) -> 50.2 | Q36: =+P36*(1+Settings!I$7) -> 51.2 | R36: =+Q36*(1+Settings!J$7) -> 52.2 | AC36: =+IF(AND(D36<>"",ISERROR(VLOOKUP(D36,D37:$E$1000,1,FALSE))),1,0) -> 0
B37: Finance | C37: Clerk | D37: 8 | E37: Name of Worker | F37: Bonus | G37: 1 | H37: 2022-01-01 | I37: 2199-12-31 | AC37: =+IF(AND(D37<>"",ISERROR(VLOOKUP(D37,D38:$E$1000,1,FALSE))),1,0) -> 0
B38: Finance | C38: Clerk | D38: 8 | E38: Name of Worker | F38: Bonus accrual | G38: 1 | H38: 2022-01-01 | I38: 2199-12-31 | K38: 1.0 | L38: 1.0 | M38: 1.0 | N38: 1.0 | O38: 1.0 | P38: 1.0 | Q38: 2.0 | R38: 3.0 | AC38: =+IF(AND(D38<>"",ISERROR(VLOOKUP(D38,D39:$E$1000,1,FALSE))),1,0) -> 0
B39: Finance | C39: Clerk | D39: 8 | E39: Name of Worker | F39: Other | G39: 1 | H39: 2022-01-01 | I39: 2199-12-31 | AC39: =+IF(AND(D39<>"",ISERROR(VLOOKUP(D39,D40:$E$1000,1,FALSE))),1,0) -> 0
B40: Finance | C40: Clerk | D40: 8 | E40: Name of Worker | F40: Social expenditure | G40: 1 | H40: 2022-01-01 | I40: 2199-12-31 | K40: =+SUM(K36:K39)*0.19 -> 8.7 | L40: =+SUM(L36:L39)*0.19 -> 8.7 | M40: =+SUM(M36:M39)*0.19 -> 9.1 | N40: =+SUM(N36:N39)*0.19 -> 9.3 | O40: =+SUM(O36:O39)*0.19 -> 9.5 | P40: =+SUM(P36:P39)*0.19 -> 9.7 | Q40: 10.1 | R40: 10.5 | T40: 54.7 | U40: 54.7 | V40: 56.9 | W40: 58.6 | X40: 59.7 | Y40: 60.9 | Z40: 63.3 | AA40: 65.7 | AC40: =+IF(AND(D40<>"",ISERROR(VLOOKUP(D40,D41:$E$1000,1,FALSE))),1,0) -> 1
B41: Secretariat | C41: Clerk | D41: 9 | E41: Name of Worker | F41: Salary | G41: 1 | H41: 2022-01-01 | I41: 2199-12-31 | K41: 45.0 | L41: 45.0 | M41: =+L41*(1+Settings!E$7) -> 46.8 | N41: =+M41*(1+Settings!F$7) -> 48.2 | O41: =+N41*(1+Settings!G$7) -> 49.2 | P41: =+O41*(1+Settings!H$7) -> 50.2 | Q41: =+P41*(1+Settings!I$7) -> 51.2 | R41: =+Q41*(1+Settings!J$7) -> 52.2 | AC41: =+IF(AND(D41<>"",ISERROR(VLOOKUP(D41,D42:$E$1000,1,FALSE))),1,0) -> 0
B42: Secretariat | C42: Clerk | D42: 9 | E42: Name of Worker | F42: Bonus | G42: 1 | H42: 2022-01-01 | I42: 2199-12-31 | AC42: =+IF(AND(D42<>"",ISERROR(VLOOKUP(D42,D43:$E$1000,1,FALSE))),1,0) -> 0
B43: Secretariat | C43: Clerk | D43: 9 | E43: Name of Worker | F43: Bonus accrual | G43: 1 | H43: 2022-01-01 | I43: 2199-12-31 | K43: 5.0 | L43: 5.0 | M43: 5.0 | N43: 5.0 | O43: 5.0 | P43: 5.0 | Q43: 6.0 | R43: 7.0 | AC43: =+IF(AND(D43<>"",ISERROR(VLOOKUP(D43,D44:$E$1000,1,FALSE))),1,0) -> 0
B44: Secretariat | C44: Clerk | D44: 9 | E44: Name of Worker | F44: Other | G44: 1 | H44: 2022-01-01 | I44: 2199-12-31 | AC44: =+IF(AND(D44<>"",ISERROR(VLOOKUP(D44,D45:$E$1000,1,FALSE))),1,0) -> 0
B45: Secretariat | C45: Clerk | D45: 9 | E45: Name of Worker | F45: Social expenditure | G45: 1 | H45: 2022-01-01 | I45: 2199-12-31 | K45: =+SUM(K41:K44)*0.19 -> 9.5 | L45: =+SUM(L41:L44)*0.19 -> 9.5 | M45: =+SUM(M41:M44)*0.19 -> 9.8 | N45: =+SUM(N41:N44)*0.19 -> 10.1 | O45: =+SUM(O41:O44)*0.19 -> 10.3 | P45: =+SUM(P41:P44)*0.19 -> 10.5 | Q45: 10.9 | R45: 11.2 | T45: 59.5 | U45: 59.5 | V45: 61.6 | W45: 63.3 | X45: 64.5 | Y45: 65.6 | Z45: 68.0 | AA45: 70.4 | AC45: =+IF(AND(D45<>"",ISERROR(VLOOKUP(D45,D46:$E$1000,1,FALSE))),1,0) -> 1
B46: Management | C46: Clerk | D46: 10 | E46: Name of Worker | F46: Salary | G46: 1 | H46: 2022-01-01 | I46: 2199-12-31 | K46: 200.0 | L46: 200.0 | M46: =+L46 -> 200.0 | N46: 200.0 | O46: 200.0 | P46: 200.0 | Q46: 200.0 | R46: 200.0 | AC46: =+IF(AND(D46<>"",ISERROR(VLOOKUP(D46,D47:$E$1000,1,FALSE))),1,0) -> 0
B47: Management | C47: Clerk | D47: 10 | E47: Name of Worker | F47: Bonus | G47: 1 | H47: 2022-01-01 | I47: 2199-12-31 | AC47: =+IF(AND(D47<>"",ISERROR(VLOOKUP(D47,D48:$E$1000,1,FALSE))),1,0) -> 0
B48: Management | C48: Clerk | D48: 10 | E48: Name of Worker | F48: Bonus accrual | G48: 1 | H48: 2022-01-01 | I48: 2199-12-31 | K48: 20.0 | L48: 20.0 | M48: 20.0 | N48: 20.0 | O48: 20.0 | P48: 20.0 | Q48: 20.0 | R48: 20.0 | AC48: =+IF(AND(D48<>"",ISERROR(VLOOKUP(D48,D49:$E$1000,1,FALSE))),1,0) -> 0
B49: Management | C49: Clerk | D49: 10 | E49: Name of Worker | F49: Other | G49: 1 | H49: 2022-01-01 | I49: 2199-12-31 | AC49: =+IF(AND(D49<>"",ISERROR(VLOOKUP(D49,D50:$E$1000,1,FALSE))),1,0) -> 0
B50: Management | C50: Clerk | D50: 10 | E50: Name of Worker | F50: Social expenditure | G50: 1 | H50: 2022-01-01 | I50: 2199-12-31 | K50: =+SUM(K46:K49)*0.19 -> 41.8 | L50: =+SUM(L46:L49)*0.19 -> 41.8 | M50: =+SUM(M46:M49)*0.19 -> 41.8 | N50: =+SUM(N46:N49)*0.19 -> 41.8 | O50: =+SUM(O46:O49)*0.19 -> 41.8 | P50: =+SUM(P46:P49)*0.19 -> 41.8 | Q50: 41.8 | R50: 41.8 | T50: 261.8 | U50: 261.8 | V50: 261.8 | W50: 261.8 | X50: 261.8 | Y50: 261.8 | Z50: 261.8 | AA50: 261.8 | AC50: =+IF(AND(D50<>"",ISERROR(VLOOKUP(D50,D51:$E$1000,1,FALSE))),1,0) -> 1
B51: IT & DevOps | C51: Clerk | D51: 11 | E51: Name of Worker | F51: Salary | G51: 1 | H51: 2022-01-01 | I51: 2199-12-31 | K51: 57.0 | L51: 57.0 | M51: =+L51*(1+Settings!E$7) -> 59.3 | N51: =+M51*(1+Settings!F$7) -> 61.1 | O51: =+N51*(1+Settings!G$7) -> 62.3 | P51: =+O51*(1+Settings!H$7) -> 63.5 | Q51: =+P51*(1+Settings!I$7) -> 64.8 | R51: =+Q51*(1+Settings!J$7) -> 66.1 | AC51: =+IF(AND(D51<>"",ISERROR(VLOOKUP(D51,D52:$E$1000,1,FALSE))),1,0) -> 0
B52: IT & DevOps | C52: Clerk | D52: 11 | E52: Name of Worker | F52: Bonus | G52: 1 | H52: 2022-01-01 | I52: 2199-12-31 | AC52: =+IF(AND(D52<>"",ISERROR(VLOOKUP(D52,D53:$E$1000,1,FALSE))),1,0) -> 0
B53: IT & DevOps | C53: Clerk | D53: 11 | E53: Name of Worker | F53: Bonus accrual | G53: 1 | H53: 2022-01-01 | I53: 2199-12-31 | K53: 5.0 | L53: 5.0 | M53: 5.0 | N53: 5.0 | O53: 5.0 | P53: 5.0 | Q53: 5.0 | R53: 5.0 | AC53: =+IF(AND(D53<>"",ISERROR(VLOOKUP(D53,D54:$E$1000,1,FALSE))),1,0) -> 0
B54: IT & DevOps | C54: Clerk | D54: 11 | E54: Name of Worker | F54: Other | G54: 1 | H54: 2022-01-01 | I54: 2199-12-31 | AC54: =+IF(AND(D54<>"",ISERROR(VLOOKUP(D54,D55:$E$1000,1,FALSE))),1,0) -> 0
B55: IT & DevOps | C55: Clerk | D55: 11 | E55: Name of Worker | F55: Social expenditure | G55: 1 | H55: 2022-01-01 | I55: 2199-12-31 | K55: 11.8 | L55: 11.8 | M55: 11.8 | N55: 11.8 | O55: 11.8 | P55: 11.8 | Q55: 11.8 | R55: 11.8 | T55: 73.8 | U55: 73.8 | V55: 76.1 | W55: 77.8 | X55: 79.1 | Y55: 80.3 | Z55: 81.6 | AA55: 82.9 | AC55: =+IF(AND(D55<>"",ISERROR(VLOOKUP(D55,D56:$E$1000,1,FALSE))),1,0) -> 1
AC56: =+IF(AND(D56<>"",ISERROR(VLOOKUP(D56,D57:$E$1000,1,FALSE))),1,0) -> 0
AC57: =+IF(AND(D57<>"",ISERROR(VLOOKUP(D57,D58:$E$1000,1,FALSE))),1,0) -> 0
AC58: =+IF(AND(D58<>"",ISERROR(VLOOKUP(D58,D59:$E$1000,1,FALSE))),1,0) -> 0
AC59: =+IF(AND(D59<>"",ISERROR(VLOOKUP(D59,D60:$E$1000,1,FALSE))),1,0) -> 0
AC60: =+IF(AND(D60<>"",ISERROR(VLOOKUP(D60,D61:$E$1000,1,FALSE))),1,0) -> 0
AC61: =+IF(AND(D61<>"",ISERROR(VLOOKUP(D61,D62:$E$1000,1,FALSE))),1,0) -> 0
AC62: =+IF(AND(D62<>"",ISERROR(VLOOKUP(D62,D63:$E$1000,1,FALSE))),1,0) -> 0
AC63: =+IF(AND(D63<>"",ISERROR(VLOOKUP(D63,D64:$E$1000,1,FALSE))),1,0) -> 0
AC64: =+IF(AND(D64<>"",ISERROR(VLOOKUP(D64,D65:$E$1000,1,FALSE))),1,0) -> 0
AC65: =+IF(AND(D65<>"",ISERROR(VLOOKUP(D65,D66:$E$1000,1,FALSE))),1,0) -> 0
AC66: =+IF(AND(D66<>"",ISERROR(VLOOKUP(D66,D67:$E$1000,1,FALSE))),1,0) -> 0
AC67: =+IF(AND(D67<>"",ISERROR(VLOOKUP(D67,D68:$E$1000,1,FALSE))),1,0) -> 0
AC68: =+IF(AND(D68<>"",ISERROR(VLOOKUP(D68,D69:$E$1000,1,FALSE))),1,0) -> 0
AC69: =+IF(AND(D69<>"",ISERROR(VLOOKUP(D69,D70:$E$1000,1,FALSE))),1,0) -> 0
AC70: =+IF(AND(D70<>"",ISERROR(VLOOKUP(D70,D71:$E$1000,1,FALSE))),1,0) -> 0
AC71: =+IF(AND(D71<>"",ISERROR(VLOOKUP(D71,D72:$E$1000,1,FALSE))),1,0) -> 0
AC72: =+IF(AND(D72<>"",ISERROR(VLOOKUP(D72,D73:$E$1000,1,FALSE))),1,0) -> 0
AC73: =+IF(AND(D73<>"",ISERROR(VLOOKUP(D73,D74:$E$1000,1,FALSE))),1,0) -> 0
T74: =+IF($AC74=1,SUMIF($D:$D,$D74,K:K),"") ->  | U74: =+IF($AC74=1,SUMIF($D:$D,$D74,L:L),"") ->  | V74: =+IF($AC74=1,SUMIF($D:$D,$D74,M:M),"") ->  | W74: =+IF($AC74=1,SUMIF($D:$D,$D74,N:N),"") ->  | X74: =+IF($AC74=1,SUMIF($D:$D,$D74,O:O),"") ->  | Y74: =+IF($AC74=1,SUMIF($D:$D,$D74,P:P),"") ->  | AC74: =+IF(AND(D74<>"",ISERROR(VLOOKUP(D74,D75:$E$1000,1,FALSE))),1,0) -> 0
AC75: =+IF(AND(D75<>"",ISERROR(VLOOKUP(D75,D76:$E$1000,1,FALSE))),1,0) -> 0
AC76: =+IF(AND(D76<>"",ISERROR(VLOOKUP(D76,D77:$E$1000,1,FALSE))),1,0) -> 0
AC77: =+IF(AND(D77<>"",ISERROR(VLOOKUP(D77,D78:$E$1000,1,FALSE))),1,0) -> 0
AC78: =+IF(AND(D78<>"",ISERROR(VLOOKUP(D78,D79:$E$1000,1,FALSE))),1,0) -> 0
AC79: =+IF(AND(D79<>"",ISERROR(VLOOKUP(D79,D80:$E$1000,1,FALSE))),1,0) -> 0
AC80: =+IF(AND(D80<>"",ISERROR(VLOOKUP(D80,D81:$E$1000,1,FALSE))),1,0) -> 0
AC81: =+IF(AND(D81<>"",ISERROR(VLOOKUP(D81,D82:$E$1000,1,FALSE))),1,0) -> 0
AC82: =+IF(AND(D82<>"",ISERROR(VLOOKUP(D82,D83:$E$1000,1,FALSE))),1,0) -> 0
AC83: =+IF(AND(D83<>"",ISERROR(VLOOKUP(D83,D84:$E$1000,1,FALSE))),1,0) -> 0
AC84: =+IF(AND(D84<>"",ISERROR(VLOOKUP(D84,D85:$E$1000,1,FALSE))),1,0) -> 0
AC85: =+IF(AND(D85<>"",ISERROR(VLOOKUP(D85,D86:$E$1000,1,FALSE))),1,0) -> 0
AC86: =+IF(AND(D86<>"",ISERROR(VLOOKUP(D86,D87:$E$1000,1,FALSE))),1,0) -> 0
AC87: =+IF(AND(D87<>"",ISERROR(VLOOKUP(D87,D88:$E$1000,1,FALSE))),1,0) -> 0
AC88: =+IF(AND(D88<>"",ISERROR(VLOOKUP(D88,D89:$E$1000,1,FALSE))),1,0) -> 0
AC89: =+IF(AND(D89<>"",ISERROR(VLOOKUP(D89,D90:$E$1000,1,FALSE))),1,0) -> 0
AC90: =+IF(AND(D90<>"",ISERROR(VLOOKUP(D90,D91:$E$1000,1,FALSE))),1,0) -> 0
AC91: =+IF(AND(D91<>"",ISERROR(VLOOKUP(D91,D92:$E$1000,1,FALSE))),1,0) -> 0
AC92: =+IF(AND(D92<>"",ISERROR(VLOOKUP(D92,D93:$E$1000,1,FALSE))),1,0) -> 0
AC93: =+IF(AND(D93<>"",ISERROR(VLOOKUP(D93,D94:$E$1000,1,FALSE))),1,0) -> 0
AC94: =+IF(AND(D94<>"",ISERROR(VLOOKUP(D94,D95:$E$1000,1,FALSE))),1,0) -> 0
AC95: =+IF(AND(D95<>"",ISERROR(VLOOKUP(D95,D96:$E$1000,1,FALSE))),1,0) -> 0
AC96: =+IF(AND(D96<>"",ISERROR(VLOOKUP(D96,D97:$E$1000,1,FALSE))),1,0) -> 0
AC97: =+IF(AND(D97<>"",ISERROR(VLOOKUP(D97,D98:$E$1000,1,FALSE))),1,0) -> 0
AC98: =+IF(AND(D98<>"",ISERROR(VLOOKUP(D98,D99:$E$1000,1,FALSE))),1,0) -> 0
AC99: =+IF(AND(D99<>"",ISERROR(VLOOKUP(D99,D100:$E$1000,1,FALSE))),1,0) -> 0
AC100: =+IF(AND(D100<>"",ISERROR(VLOOKUP(D100,D101:$E$1000,1,FALSE))),1,0) -> 0
AC101: =+IF(AND(D101<>"",ISERROR(VLOOKUP(D101,D102:$E$1000,1,FALSE))),1,0) -> 0
AC102: =+IF(AND(D102<>"",ISERROR(VLOOKUP(D102,D103:$E$1000,1,FALSE))),1,0) -> 0
AC103: =+IF(AND(D103<>"",ISERROR(VLOOKUP(D103,D104:$E$1000,1,FALSE))),1,0) -> 0
AC104: =+IF(AND(D104<>"",ISERROR(VLOOKUP(D104,D105:$E$1000,1,FALSE))),1,0) -> 0
AC105: =+IF(AND(D105<>"",ISERROR(VLOOKUP(D105,D106:$E$1000,1,FALSE))),1,0) -> 0
AC106: =+IF(AND(D106<>"",ISERROR(VLOOKUP(D106,D107:$E$1000,1,FALSE))),1,0) -> 0
AC107: =+IF(AND(D107<>"",ISERROR(VLOOKUP(D107,D108:$E$1000,1,FALSE))),1,0) -> 0
AC108: =+IF(AND(D108<>"",ISERROR(VLOOKUP(D108,D109:$E$1000,1,FALSE))),1,0) -> 0
AC109: =+IF(AND(D109<>"",ISERROR(VLOOKUP(D109,D110:$E$1000,1,FALSE))),1,0) -> 0
AC110: =+IF(AND(D110<>"",ISERROR(VLOOKUP(D110,D111:$E$1000,1,FALSE))),1,0) -> 0
AC111: =+IF(AND(D111<>"",ISERROR(VLOOKUP(D111,D112:$E$1000,1,FALSE))),1,0) -> 0
AC112: =+IF(AND(D112<>"",ISERROR(VLOOKUP(D112,D113:$E$1000,1,FALSE))),1,0) -> 0
AC113: =+IF(AND(D113<>"",ISERROR(VLOOKUP(D113,D114:$E$1000,1,FALSE))),1,0) -> 0
AC114: =+IF(AND(D114<>"",ISERROR(VLOOKUP(D114,D115:$E$1000,1,FALSE))),1,0) -> 0
AC115: =+IF(AND(D115<>"",ISERROR(VLOOKUP(D115,D116:$E$1000,1,FALSE))),1,0) -> 0
AC116: =+IF(AND(D116<>"",ISERROR(VLOOKUP(D116,D117:$E$1000,1,FALSE))),1,0) -> 0
AC117: =+IF(AND(D117<>"",ISERROR(VLOOKUP(D117,D118:$E$1000,1,FALSE))),1,0) -> 0
AC118: =+IF(AND(D118<>"",ISERROR(VLOOKUP(D118,D119:$E$1000,1,FALSE))),1,0) -> 0
AC119: =+IF(AND(D119<>"",ISERROR(VLOOKUP(D119,D120:$E$1000,1,FALSE))),1,0) -> 0
AC120: =+IF(AND(D120<>"",ISERROR(VLOOKUP(D120,D121:$E$1000,1,FALSE))),1,0) -> 0
AC121: =+IF(AND(D121<>"",ISERROR(VLOOKUP(D121,D122:$E$1000,1,FALSE))),1,0) -> 0
AC122: =+IF(AND(D122<>"",ISERROR(VLOOKUP(D122,D123:$E$1000,1,FALSE))),1,0) -> 0
AC123: =+IF(AND(D123<>"",ISERROR(VLOOKUP(D123,D124:$E$1000,1,FALSE))),1,0) -> 0
AC124: =+IF(AND(D124<>"",ISERROR(VLOOKUP(D124,D125:$E$1000,1,FALSE))),1,0) -> 0
AC125: =+IF(AND(D125<>"",ISERROR(VLOOKUP(D125,D126:$E$1000,1,FALSE))),1,0) -> 0
AC126: =+IF(AND(D126<>"",ISERROR(VLOOKUP(D126,D127:$E$1000,1,FALSE))),1,0) -> 0
AC127: =+IF(AND(D127<>"",ISERROR(VLOOKUP(D127,D128:$E$1000,1,FALSE))),1,0) -> 0
AC128: =+IF(AND(D128<>"",ISERROR(VLOOKUP(D128,D129:$E$1000,1,FALSE))),1,0) -> 0
AC129: =+IF(AND(D129<>"",ISERROR(VLOOKUP(D129,D130:$E$1000,1,FALSE))),1,0) -> 0
AC130: =+IF(AND(D130<>"",ISERROR(VLOOKUP(D130,D131:$E$1000,1,FALSE))),1,0) -> 0
AC131: =+IF(AND(D131<>"",ISERROR(VLOOKUP(D131,D132:$E$1000,1,FALSE))),1,0) -> 0
AC132: =+IF(AND(D132<>"",ISERROR(VLOOKUP(D132,D133:$E$1000,1,FALSE))),1,0) -> 0
AC133: =+IF(AND(D133<>"",ISERROR(VLOOKUP(D133,D134:$E$1000,1,FALSE))),1,0) -> 0
AC134: =+IF(AND(D134<>"",ISERROR(VLOOKUP(D134,D135:$E$1000,1,FALSE))),1,0) -> 0
AC135: =+IF(AND(D135<>"",ISERROR(VLOOKUP(D135,D136:$E$1000,1,FALSE))),1,0) -> 0
AC136: =+IF(AND(D136<>"",ISERROR(VLOOKUP(D136,D137:$E$1000,1,FALSE))),1,0) -> 0
AC137: =+IF(AND(D137<>"",ISERROR(VLOOKUP(D137,D138:$E$1000,1,FALSE))),1,0) -> 0
T138: =+IF($AC138=1,SUMIF($D:$D,$D138,K:K),"") ->  | U138: =+IF($AC138=1,SUMIF($D:$D,$D138,L:L),"") ->  | V138: =+IF($AC138=1,SUMIF($D:$D,$D138,M:M),"") ->  | W138: =+IF($AC138=1,SUMIF($D:$D,$D138,N:N),"") ->  | X138: =+IF($AC138=1,SUMIF($D:$D,$D138,O:O),"") ->  | Y138: =+IF($AC138=1,SUMIF($D:$D,$D138,P:P),"") ->  | AC138: =+IF(AND(D138<>"",ISERROR(VLOOKUP(D138,D139:$E$1000,1,FALSE))),1,0) -> 0
AC139: =+IF(AND(D139<>"",ISERROR(VLOOKUP(D139,D140:$E$1000,1,FALSE))),1,0) -> 0
AC140: =+IF(AND(D140<>"",ISERROR(VLOOKUP(D140,D141:$E$1000,1,FALSE))),1,0) -> 0
AC141: =+IF(AND(D141<>"",ISERROR(VLOOKUP(D141,D142:$E$1000,1,FALSE))),1,0) -> 0
AC142: =+IF(AND(D142<>"",ISERROR(VLOOKUP(D142,D143:$E$1000,1,FALSE))),1,0) -> 0
AC143: =+IF(AND(D143<>"",ISERROR(VLOOKUP(D143,D144:$E$1000,1,FALSE))),1,0) -> 0
AC144: =+IF(AND(D144<>"",ISERROR(VLOOKUP(D144,D145:$E$1000,1,FALSE))),1,0) -> 0
AC145: =+IF(AND(D145<>"",ISERROR(VLOOKUP(D145,D146:$E$1000,1,FALSE))),1,0) -> 0
AC146: =+IF(AND(D146<>"",ISERROR(VLOOKUP(D146,D147:$E$1000,1,FALSE))),1,0) -> 0
AC147: =+IF(AND(D147<>"",ISERROR(VLOOKUP(D147,D148:$E$1000,1,FALSE))),1,0) -> 0
AC148: =+IF(AND(D148<>"",ISERROR(VLOOKUP(D148,D149:$E$1000,1,FALSE))),1,0) -> 0
AC149: =+IF(AND(D149<>"",ISERROR(VLOOKUP(D149,D150:$E$1000,1,FALSE))),1,0) -> 0
AC150: =+IF(AND(D150<>"",ISERROR(VLOOKUP(D150,D151:$E$1000,1,FALSE))),1,0) -> 0
AC151: =+IF(AND(D151<>"",ISERROR(VLOOKUP(D151,D152:$E$1000,1,FALSE))),1,0) -> 0
AC152: =+IF(AND(D152<>"",ISERROR(VLOOKUP(D152,D153:$E$1000,1,FALSE))),1,0) -> 0
AC153: =+IF(AND(D153<>"",ISERROR(VLOOKUP(D153,D154:$E$1000,1,FALSE))),1,0) -> 0
AC154: =+IF(AND(D154<>"",ISERROR(VLOOKUP(D154,D155:$E$1000,1,FALSE))),1,0) -> 0
AC155: =+IF(AND(D155<>"",ISERROR(VLOOKUP(D155,D156:$E$1000,1,FALSE))),1,0) -> 0
AC156: =+IF(AND(D156<>"",ISERROR(VLOOKUP(D156,D157:$E$1000,1,FALSE))),1,0) -> 0
AC157: =+IF(AND(D157<>"",ISERROR(VLOOKUP(D157,D158:$E$1000,1,FALSE))),1,0) -> 0
AC158: =+IF(AND(D158<>"",ISERROR(VLOOKUP(D158,D159:$E$1000,1,FALSE))),1,0) -> 0
AC159: =+IF(AND(D159<>"",ISERROR(VLOOKUP(D159,D160:$E$1000,1,FALSE))),1,0) -> 0
AC160: =+IF(AND(D160<>"",ISERROR(VLOOKUP(D160,D161:$E$1000,1,FALSE))),1,0) -> 0
AC161: =+IF(AND(D161<>"",ISERROR(VLOOKUP(D161,D162:$E$1000,1,FALSE))),1,0) -> 0
AC162: =+IF(AND(D162<>"",ISERROR(VLOOKUP(D162,D163:$E$1000,1,FALSE))),1,0) -> 0
AC163: =+IF(AND(D163<>"",ISERROR(VLOOKUP(D163,D164:$E$1000,1,FALSE))),1,0) -> 0
AC164: =+IF(AND(D164<>"",ISERROR(VLOOKUP(D164,D165:$E$1000,1,FALSE))),1,0) -> 0
AC165: =+IF(AND(D165<>"",ISERROR(VLOOKUP(D165,D166:$E$1000,1,FALSE))),1,0) -> 0
AC166: =+IF(AND(D166<>"",ISERROR(VLOOKUP(D166,D167:$E$1000,1,FALSE))),1,0) -> 0
AC167: =+IF(AND(D167<>"",ISERROR(VLOOKUP(D167,D168:$E$1000,1,FALSE))),1,0) -> 0
AC168: =+IF(AND(D168<>"",ISERROR(VLOOKUP(D168,D169:$E$1000,1,FALSE))),1,0) -> 0
AC169: =+IF(AND(D169<>"",ISERROR(VLOOKUP(D169,D170:$E$1000,1,FALSE))),1,0) -> 0
AC170: =+IF(AND(D170<>"",ISERROR(VLOOKUP(D170,D171:$E$1000,1,FALSE))),1,0) -> 0
AC171: =+IF(AND(D171<>"",ISERROR(VLOOKUP(D171,D172:$E$1000,1,FALSE))),1,0) -> 0
AC172: =+IF(AND(D172<>"",ISERROR(VLOOKUP(D172,D173:$E$1000,1,FALSE))),1,0) -> 0
AC173: =+IF(AND(D173<>"",ISERROR(VLOOKUP(D173,D174:$E$1000,1,FALSE))),1,0) -> 0
AC174: =+IF(AND(D174<>"",ISERROR(VLOOKUP(D174,D175:$E$1000,1,FALSE))),1,0) -> 0
AC175: =+IF(AND(D175<>"",ISERROR(VLOOKUP(D175,D176:$E$1000,1,FALSE))),1,0) -> 0
AC176: =+IF(AND(D176<>"",ISERROR(VLOOKUP(D176,D177:$E$1000,1,FALSE))),1,0) -> 0
AC177: =+IF(AND(D177<>"",ISERROR(VLOOKUP(D177,D178:$E$1000,1,FALSE))),1,0) -> 0
AC178: =+IF(AND(D178<>"",ISERROR(VLOOKUP(D178,D179:$E$1000,1,FALSE))),1,0) -> 0
AC179: =+IF(AND(D179<>"",ISERROR(VLOOKUP(D179,D180:$E$1000,1,FALSE))),1,0) -> 0
AC180: =+IF(AND(D180<>"",ISERROR(VLOOKUP(D180,D181:$E$1000,1,FALSE))),1,0) -> 0
AC181: =+IF(AND(D181<>"",ISERROR(VLOOKUP(D181,D182:$E$1000,1,FALSE))),1,0) -> 0
AC182: =+IF(AND(D182<>"",ISERROR(VLOOKUP(D182,D183:$E$1000,1,FALSE))),1,0) -> 0
AC183: =+IF(AND(D183<>"",ISERROR(VLOOKUP(D183,D184:$E$1000,1,FALSE))),1,0) -> 0
AC184: =+IF(AND(D184<>"",ISERROR(VLOOKUP(D184,D185:$E$1000,1,FALSE))),1,0) -> 0
AC185: =+IF(AND(D185<>"",ISERROR(VLOOKUP(D185,D186:$E$1000,1,FALSE))),1,0) -> 0
AC186: =+IF(AND(D186<>"",ISERROR(VLOOKUP(D186,D187:$E$1000,1,FALSE))),1,0) -> 0
AC187: =+IF(AND(D187<>"",ISERROR(VLOOKUP(D187,D188:$E$1000,1,FALSE))),1,0) -> 0
AC188: =+IF(AND(D188<>"",ISERROR(VLOOKUP(D188,D189:$E$1000,1,FALSE))),1,0) -> 0
AC189: =+IF(AND(D189<>"",ISERROR(VLOOKUP(D189,D190:$E$1000,1,FALSE))),1,0) -> 0
AC190: =+IF(AND(D190<>"",ISERROR(VLOOKUP(D190,D191:$E$1000,1,FALSE))),1,0) -> 0
AC191: =+IF(AND(D191<>"",ISERROR(VLOOKUP(D191,D192:$E$1000,1,FALSE))),1,0) -> 0
AC192: =+IF(AND(D192<>"",ISERROR(VLOOKUP(D192,D193:$E$1000,1,FALSE))),1,0) -> 0
AC193: =+IF(AND(D193<>"",ISERROR(VLOOKUP(D193,D194:$E$1000,1,FALSE))),1,0) -> 0
AC194: =+IF(AND(D194<>"",ISERROR(VLOOKUP(D194,D195:$E$1000,1,FALSE))),1,0) -> 0
AC195: =+IF(AND(D195<>"",ISERROR(VLOOKUP(D195,D196:$E$1000,1,FALSE))),1,0) -> 0
AC196: =+IF(AND(D196<>"",ISERROR(VLOOKUP(D196,D197:$E$1000,1,FALSE))),1,0) -> 0
AC197: =+IF(AND(D197<>"",ISERROR(VLOOKUP(D197,D198:$E$1000,1,FALSE))),1,0) -> 0
AC198: =+IF(AND(D198<>"",ISERROR(VLOOKUP(D198,D199:$E$1000,1,FALSE))),1,0) -> 0
AC199: =+IF(AND(D199<>"",ISERROR(VLOOKUP(D199,D200:$E$1000,1,FALSE))),1,0) -> 0
AC200: =+IF(AND(D200<>"",ISERROR(VLOOKUP(D200,D201:$E$1000,1,FALSE))),1,0) -> 0
AC201: =+IF(AND(D201<>"",ISERROR(VLOOKUP(D201,D202:$E$1000,1,FALSE))),1,0) -> 0
... 99 more rows
